fUSD/lending_fUSD_20250507
["ID","MTS","AMOUNT","RATE_DAILY","PERIOD"]
[360220695,1746633042019,-450.0,0.00019764,2]
[360220696,1746633042029,-450.0,0.00019764,2]
[360220697,1746633042040,-450.0,0.00019764,2]
[360220698,1746633042050,-450.0,0.00019764,2]
[360220699,1746633042060,-450.0,0.00019764,2]
[360220700,1746633042071,-470.0,0.00019764,2]
[360220701,1746633042080,-450.0,0.00019764,2]
[360220702,1746633042090,-511.82118082,0.00019764,2]
[360220703,1746633042100,-450.0,0.00019764,2]
[360220704,1746633042111,-450.0,0.00019764,2]
[360220705,1746633042120,-450.0,0.00019764,2]
[360220706,1746633042131,-450.0,0.00019764,2]
[360220707,1746633042141,-450.0,0.00019764,2]
[360220708,1746633042151,-450.0,0.00019764,2]
[360220709,1746633042161,-450.0,0.00019764,2]
[360220710,1746633042171,-450.0,0.00019764,2]
[360220711,1746633042181,-450.0,0.00019764,2]
[360220712,1746633042191,-450.0,0.00019764,2]
[360220713,1746633042201,-450.0,0.00019764,2]
[360220714,1746633042211,-450.0,0.00019764,2]
[360220715,1746633042221,-450.0,0.00019764,2]
[360220716,1746633042231,-450.0,0.00019764,2]
[360220717,1746633042241,-450.0,0.00019764,2]
[360220718,1746633042252,-464.57555561,0.00019764,2]
[360220719,1746633042262,-450.0,0.00019764,2]
[360220720,1746633042273,-450.0,0.00019764,2]
[360220721,1746633042283,-450.0,0.00019764,2]
[360220722,1746633042293,-450.0,0.00019764,2]
[360220723,1746633042305,-450.0,0.00019764,2]
[360220724,1746633042315,-486.73,0.00019764,2]
[360220725,1746633042324,-450.0,0.00019764,2]
[360220726,1746633042334,-450.0,0.00019764,2]
[360220727,1746633042344,-450.0,0.00019764,2]
[360220728,1746633042355,-192.13432092,0.00019764,2]
[360220729,1746633042364,-450.0,0.00019764,2]
[360220730,1746633042377,-450.0,0.00019764,2]
[360220731,1746633042388,-450.0,0.00019764,2]
[360220732,1746633042398,-450.0,0.00019764,2]
[360220733,1746633042410,-450.0,0.00019764,2]
[360220734,1746633042419,-450.0,0.00019764,2]
[360220735,1746633042429,-450.0,0.00019764,2]
[360220736,1746633042439,-450.0,0.00019764,2]
[360220737,1746633042449,-450.0,0.00019764,2]
[360220738,1746633042459,-450.0,0.00019764,2]
[360220739,1746633042471,-500.0,0.00019764,2]
[360220740,1746633042481,-450.0,0.00019764,2]
[360220741,1746633042494,-450.0,0.00019764,2]
[360220742,1746633042504,-1000.0,0.00019764,2]
[360220744,1746633042515,-776.0,0.00019764,2]
[360220746,1746633042525,-2385.49826307,0.00019769,2]
[360220747,1746633042535,-514.95880307,0.00019773,2]
[360220748,1746633042544,-500.0,0.00019773,2]
[360220749,1746633042554,-500.0,0.00019773,2]
[360220750,1746633042563,-500.0,0.00019773,2]
[360220751,1746633042574,-500.0,0.00019773,2]
[360220752,1746633042584,-500.0,0.00019773,2]
[360220753,1746633042595,-500.0,0.00019773,2]
[360220754,1746633042605,-500.0,0.00019773,2]
[360220755,1746633042616,-500.0,0.00019773,2]
[360220756,1746633042627,-162.30323628,0.00019773,2]
[360220757,1746633042636,-500.0,0.00019773,2]
[360220758,1746633042647,-500.0,0.00019773,2]
[360220759,1746633042656,-160.2318652,0.00019773,2]
[360220762,1746633042666,-1457.09153712,0.0001979,2]
[360220763,1746633042675,-321.65211729,0.000198,2]
[360220765,1746633042685,-476.0,0.000198,2]
[360220767,1746633042695,-2385.49826307,0.00019802,2]
[360220770,1746633042706,-1457.09153707,0.00019802,2]
[360220772,1746633042716,-450.0,0.00019814,2]
[360220774,1746633042726,-450.0,0.00019814,2]
[360220776,1746633042736,-450.0,0.00019814,2]
[360220779,1746633042745,-450.0,0.00019814,2]
[360220782,1746633042755,-450.0,0.00019814,2]
[360220784,1746633042766,-500.0,0.00019814,2]
[360220786,1746633042775,-450.0,0.00019814,2]
[360220788,1746633042785,-450.0,0.00019814,2]
[360220790,1746633042795,-450.0,0.00019814,2]
[360220793,1746633042805,-450.0,0.00019814,2]
[360220795,1746633042816,-450.0,0.00019814,2]
[360220797,1746633042826,-450.0,0.00019814,2]
[360220799,1746633042839,-450.0,0.00019814,2]
[360220800,1746633042849,-450.0,0.00019814,2]
[360220801,1746633042859,-450.0,0.00019814,2]
[360220802,1746633042869,-450.0,0.00019814,2]
[360220803,1746633042880,-450.0,0.00019814,2]
[360220804,1746633042890,-547.62,0.00019814,2]
[360220805,1746633042900,-450.0,0.00019814,2]
[360220806,1746633042909,-450.0,0.00019814,2]
[360220807,1746633042919,-450.0,0.00019814,2]
[360220808,1746633042930,-450.0,0.00019814,2]
[360220809,1746633042940,-450.0,0.00019814,2]
[360220810,1746633042950,-450.0,0.00019814,2]
[360220811,1746633042960,-450.0,0.00019814,2]
[360220812,1746633042969,-450.0,0.00019814,2]
[360220813,1746633042979,-450.0,0.00019814,2]
[360220814,1746633042991,-158.0,0.00019814,2]
[360220815,1746633043000,-1457.09153707,0.00019814,2]
[360220816,1746633043011,-450.0,0.00019815,2]
[360220817,1746633043021,-450.0,0.00019815,2]
[360220818,1746633043031,-500.0,0.00019815,2]
[360220819,1746633043041,-1457.09153707,0.00019827,2]
[360220820,1746633043050,-2385.49826307,0.00019835,2]
[360220821,1746633043061,-9652.00416598,0.00019838,2]
[360220822,1746633043073,-1457.09153707,0.00019839,2]
[360220823,1746633043083,-439.0318849,0.00019839,2]
[360220824,1746633043093,-450.0,0.00019839,2]
[360220825,1746633043103,-222.29,0.00019839,2]
[360220826,1746633043113,-450.0,0.00019839,2]
[360220827,1746633043124,-450.0,0.00019839,2]
[360220828,1746633043134,-450.0,0.00019839,2]
[360220829,1746633043143,-450.0,0.00019839,2]
[360220830,1746633043153,-450.0,0.00019839,2]
[360220831,1746633043163,-450.0,0.00019839,2]
[360220833,1746633043173,-450.0,0.00019839,2]
[360220834,1746633043183,-450.0,0.00019839,2]
[360220835,1746633043193,-450.0,0.00019839,2]
[360220836,1746633043203,-450.0,0.00019839,2]
[360220837,1746633043213,-495.24364102,0.00019839,2]
[360220838,1746633043223,-450.0,0.00019839,2]
[360220839,1746633043233,-450.0,0.00019839,2]
[360220840,1746633043243,-450.0,0.00019839,2]
[360220841,1746633043253,-500.0,0.00019839,2]
[360220842,1746633043262,-450.0,0.00019839,2]
[360220843,1746633043272,-486.73,0.00019839,2]
[360220844,1746633043282,-453.82,0.00019839,2]
[360220845,1746633043291,-450.0,0.00019839,2]
[360220846,1746633043301,-450.0,0.00019839,2]
[360220847,1746633043311,-450.0,0.00019839,2]
[360220848,1746633043322,-450.0,0.00019839,2]
[360220850,1746633043332,-450.0,0.00019839,2]
[360220851,1746633043342,-2000.0,0.0001984,2]
[360220852,1746633043351,-200.0,0.0001984,2]
[360220853,1746633043361,-1457.09153707,0.00019851,2]
[360220854,1746633043371,-666.195,0.00019853,2]
[360220855,1746633043380,-1009.05690153,0.00019859,2]
[360220856,1746633043390,-500.0,0.0001986,2]
[360220857,1746633043400,-450.0,0.0001986,2]
[360220858,1746633043410,-450.0,0.0001986,2]
[360220859,1746633043420,-450.0,0.0001986,2]
[360220860,1746633043429,-450.0,0.0001986,2]
[360220861,1746633043439,-697.21,0.0001986,2]
[360220862,1746633043448,-569.34771324,0.0001986,2]
[360220863,1746633043458,-450.0,0.0001986,2]
[360220864,1746633043468,-450.0,0.0001986,2]
[360220865,1746633043478,-450.0,0.0001986,2]
[360220866,1746633043488,-450.0,0.0001986,2]
[360220867,1746633043497,-450.0,0.0001986,2]
[360220868,1746633043507,-450.0,0.0001986,2]
[360220869,1746633043517,-1457.09153707,0.00019863,2]
[360220870,1746633043526,-2385.49826307,0.00019867,2]
[360220871,1746633043536,-500.0,0.00019873,2]
[360220872,1746633043546,-500.0,0.00019873,2]
[360220873,1746633043555,-500.0,0.00019873,2]
[360220874,1746633043567,-500.0,0.00019873,2]
[360220875,1746633043576,-500.0,0.00019873,2]
[360220876,1746633043586,-500.0,0.00019873,2]
[360220877,1746633043596,-500.0,0.00019873,2]
[360220878,1746633043606,-500.0,0.00019873,2]
[360220879,1746633043615,-500.0,0.00019873,2]
[360220880,1746633043625,-500.0,0.00019873,2]
[360220881,1746633043634,-1457.09153707,0.00019876,2]
[360220882,1746633043644,-450.0,0.00019878,2]
[360220883,1746633043654,-450.0,0.00019878,2]
[360220884,1746633043664,-450.0,0.00019878,2]
[360220885,1746633043673,-450.0,0.00019878,2]
[360220886,1746633043683,-450.0,0.00019878,2]
[360220887,1746633043692,-450.0,0.00019878,2]
[360220888,1746633043702,-160.97,0.00019878,2]
[360220889,1746633043711,-303.8,0.00019878,2]
[360220890,1746633043721,-450.0,0.00019878,2]
[360220891,1746633043731,-450.0,0.00019878,2]
[360220892,1746633043741,-450.0,0.00019878,2]
[360220893,1746633043751,-450.0,0.00019878,2]
[360220894,1746633043761,-599.48,0.00019878,2]
[360220895,1746633043770,-450.0,0.00019878,2]
[360220896,1746633043780,-450.0,0.00019878,2]
[360220897,1746633043790,-450.0,0.00019878,2]
[360220898,1746633043799,-450.0,0.00019878,2]
[360220899,1746633043809,-187.88,0.00019878,2]
[360220900,1746633043820,-217.51,0.00019878,2]
[360220901,1746633043830,-410.93975149,0.00019878,2]
[360220902,1746633043840,-500.0,0.00019878,2]
[360220903,1746633043852,-450.0,0.00019878,2]
[360220904,1746633043863,-570.5200492,0.00019878,2]
[360220905,1746633043872,-500.0,0.00019878,2]
[360220906,1746633043882,-4710.08,0.00019878,2]
[360220907,1746633043892,-450.0,0.00019878,2]
[360220908,1746633043901,-450.0,0.00019878,2]
[360220909,1746633043911,-291.1631711,0.00019878,2]
[360220910,1746633043921,-450.0,0.00019878,2]
[360220911,1746633043932,-450.0,0.00019878,2]
[360220912,1746633043942,-450.0,0.00019878,2]
[360220913,1746633043951,-160.03,0.00019878,2]
[360220914,1746633043961,-278.84,0.00019878,2]
[360220915,1746633043971,-450.0,0.00019878,2]
[360220916,1746633043980,-450.0,0.00019878,2]
[360220917,1746633043990,-450.0,0.00019878,2]
[360220918,1746633044000,-450.0,0.00019878,2]
[360220919,1746633044009,-3036.68,0.00019878,2]
[360220920,1746633044019,-450.0,0.00019878,2]
[360220921,1746633044030,-450.0,0.00019878,2]
[360220922,1746633044040,-450.0,0.00019878,2]
[360220923,1746633044050,-485.81336337,0.00019878,2]
[360220924,1746633044059,-450.0,0.00019878,2]
[360220925,1746633044072,-450.0,0.00019878,2]
[360220926,1746633044082,-456.5778841,0.00019878,2]
[360220927,1746633044295,-764.91,0.00019878,2]
[360220928,1746633044306,-478.62678707,0.00019878,2]
[360220929,1746633044318,-450.0,0.00019878,2]
[360220930,1746633044329,-450.0,0.00019878,2]
[360220931,1746633044339,-250.0,0.00019878,2]
[360220932,1746633044348,-450.0,0.00019878,2]
[360220933,1746633044358,-450.0,0.00019878,2]
[360220934,1746633044368,-450.0,0.00019878,2]
[360220935,1746633044379,-450.0,0.00019878,2]
[360220936,1746633044391,-450.0,0.00019878,2]
[360220937,1746633044402,-450.0,0.00019878,2]
[360220938,1746633044413,-450.0,0.00019878,2]
[360220939,1746633044423,-450.0,0.00019878,2]
[360220940,1746633044432,-450.0,0.00019878,2]
[360220941,1746633044442,-264.655042,0.00019879,2]
[360220942,1746633044453,-264.655042,0.00019879,2]
[360220943,1746633044463,-151.0,0.00019879,2]
[360220944,1746633044473,-151.0,0.00019879,2]
[360220945,1746633044484,-151.0,0.00019879,2]
[360220946,1746633044494,-1457.09153707,0.00019888,2]
[360220947,1746633044505,-450.0,0.00019889,2]
[360220948,1746633044515,-450.0,0.0001989,2]
[360220949,1746633044525,-159.41,0.0001989,2]
[360220950,1746633044535,-430.28,0.0001989,2]
[360220951,1746633044545,-450.0,0.0001989,2]
[360220952,1746633044555,-486.73,0.0001989,2]
[360220953,1746633044567,-338.92,0.0001989,2]
[360220954,1746633044577,-285.21,0.0001989,2]
[360220955,1746633044587,-450.0,0.0001989,2]
[360220956,1746633044597,-7777.22809895,0.0001989,2]
[360220957,1746633044812,-974.49434683,0.0001989,2]
[360220958,1746633044827,-432.26839026,0.0001989,2]
[360220959,1746633044843,-721.51123384,0.0001989,2]
[360220960,1746633044855,-2370.18000006,0.0001989,2]
[360220961,1746633044872,-597.37386449,0.0001989,2]
[360220962,1746633044889,-1799.06958857,0.0001989,2]
[360220963,1746633044900,-151.0,0.00019891,2]
[360220964,1746633044910,-151.0,0.00019891,2]
[360220965,1746633044920,-151.0,0.00019891,2]
[360220966,1746633044931,-264.655042,0.00019891,2]
[360220967,1746633044941,-264.655042,0.00019891,2]
[360220968,1746633044952,-151.0,0.00019891,2]
[360220969,1746633044962,-151.0,0.00019891,2]
[360220970,1746633044973,-243.45492183,0.00019892,2]
[360220971,1746633044983,-151.0,0.00019893,2]
[360220972,1746633044992,-450.0,0.00019897,2]
[360220973,1746633045002,-151.0,0.00019899,2]
[360220974,1746633045012,-18.9654054,0.00019899,2]
[360220975,1746633045024,-132.0345946,0.00019899,2]
[360220976,1746633045034,-264.655042,0.00019899,2]
[360220977,1746633045043,-264.655042,0.00019899,2]
[360220978,1746633045052,-142.0133214,0.00019899,2]
[360220979,1746633045064,-8.9866786,0.00019899,2]
[360220980,1746633045075,-151.0,0.00019899,2]
[360220981,1746633045084,-166.55221696,0.00019899,2]
[360220982,1746633045094,-250.45110444,0.00019899,2]
[360220983,1746633045107,-85.03731061,0.00019899,2]
[360220984,1746633045117,-381.91868939,0.00019899,2]
[360220987,1746633045719,-205.85846754,0.00019899,2]
[360220988,1746633045730,-1868.9185349,0.000199,2]
[360220989,1746633045740,-162.4,0.000199,2]
[360220990,1746633045750,-913.42,0.000199,2]
[360220991,1746633045760,-456.71,0.000199,2]
[360220992,1746633045770,-300.0,0.000199,2]
[360220993,1746633045781,-352.43,0.000199,2]
[360220994,1746633045791,-456.71,0.000199,2]
[360220995,1746633045801,-452.08,0.000199,2]
[360220996,1746633045811,-162.4,0.000199,2]
[360220997,1746633045823,-456.71,0.000199,2]
[360220998,1746633045833,-1603.56,0.000199,2]
[360220999,1746633045843,-456.71,0.000199,2]
[360221000,1746633045855,-802.64,0.000199,2]
[360221001,1746633045865,-456.71,0.000199,2]
[360221002,1746633045874,-802.64,0.000199,2]
[360221003,1746633045886,-456.71,0.000199,2]
[360221004,1746633045896,-802.64,0.000199,2]
[360221005,1746633045906,-802.64,0.000199,2]
[360221006,1746633045915,-162.4,0.000199,2]
[360221007,1746633045927,-162.4,0.000199,2]
[360221008,1746633045936,-1605.28,0.000199,2]
[360221009,1746633045946,-452.08,0.000199,2]
[360221010,1746633045956,-300.0,0.000199,2]
[360221011,1746633045966,-452.08,0.000199,2]
[360221012,1746633045977,-2385.49826307,0.000199,2]
[360221013,1746633045987,-1155.27,0.000199,2]
[360221014,1746633045996,-300.0,0.000199,2]
[360221015,1746633046007,-1457.09153707,0.000199,2]
[360221016,1746633046017,-452.08,0.000199,2]
[360221017,1746633046027,-150.0,0.000199,2]
[360221018,1746633046038,-348.33,0.000199,2]
[360221019,1746633046048,-162.4,0.000199,2]
[360221020,1746633046058,-352.43,0.000199,2]
[360221021,1746633046069,-540.73040486,0.000199,2]
[360221022,1746633046079,-352.43,0.000199,2]
[360221023,1746633046089,-162.4,0.000199,2]
[360221024,1746633046100,-456.71,0.000199,2]
[360221025,1746633046110,-352.43,0.000199,2]
[360221026,1746633046121,-2420.88794149,0.000199,2]
[360221027,1746633046131,-188.77852237,0.000199,2]
[360221029,1746633046142,-194.77304099,0.000199,3]
[360221030,1746633046152,-162.4,0.000199,2]
[360221031,1746633046161,-802.64,0.000199,2]
[360221032,1746633046171,-912.68,0.000199,2]
[360221033,1746633046181,-843.3353795,0.00019902,2]
[360221034,1746633046192,-301.77,0.00019928,2]
[360221035,1746633046203,-331.46,0.00019928,2]
[360221036,1746633046213,-486.73,0.00019928,2]
[360221037,1746633046222,-450.0,0.00019928,2]
[360221038,1746633046232,-414.58069542,0.00019951,2]
[360221039,1746633046242,-6134.61291966,0.00019953,2]
[360221040,1746633046252,-450.0,0.00019953,2]
[360221041,1746633046261,-167.33147416,0.00019954,2]
[360221042,1746633046271,-366.97997756,0.00019954,2]
[360221043,1746633046281,-450.0,0.00019954,2]
[360221044,1746633046292,-450.0,0.00019954,2]
[360221045,1746633046302,-450.0,0.00019954,2]
[360221046,1746633046311,-450.0,0.00019954,2]
[360221048,1746633046323,-450.0,0.00019954,2]
[360221050,1746633046333,-3138.586,0.00019954,2]
[360221051,1746633046343,-258.19968318,0.00019954,2]
[360221052,1746633046354,-450.0,0.00019954,2]
[360221053,1746633046363,-450.0,0.00019954,2]
[360221054,1746633046373,-492.23,0.00019954,2]
[360221055,1746633046382,-450.0,0.00019954,2]
[360221056,1746633046393,-450.0,0.00019954,2]
[360221057,1746633046402,-595.22,0.00019954,2]
[360221058,1746633046412,-585.44,0.00019954,2]
[360221059,1746633046422,-450.0,0.00019954,2]
[360221060,1746633046432,-599.58070445,0.00019954,2]
[360221061,1746633046441,-450.0,0.00019954,2]
[360221062,1746633046451,-12500.0,0.00019955,2]
[360221063,1746633046461,-171.691,0.00019955,2]
[360221064,1746633046471,-4853.36768485,0.00019955,2]
[360221065,1746633046481,-298.87576,0.00019955,23]
[360221066,1746633046491,-450.0,0.00019963,2]
[360221067,1746633046501,-450.0,0.00019963,2]
[360221068,1746633046510,-450.0,0.00019963,2]
[360221069,1746633046519,-450.0,0.00019963,2]
[360221070,1746633046530,-450.0,0.00019963,2]
[360221071,1746633046540,-188.7153091,0.00019963,2]
[360221072,1746633046550,-550.0,0.00019963,2]
[360221073,1746633046559,-477.59051706,0.00019963,2]
[360221074,1746633046570,-510.15604118,0.00019963,2]
[360221075,1746633046580,-450.0,0.00019963,2]
[360221076,1746633046589,-450.0,0.00019963,2]
[360221077,1746633046599,-450.0,0.00019963,2]
[360221078,1746633046608,-450.0,0.00019963,2]
[360221079,1746633046618,-500.0,0.00019963,2]
[360221080,1746633046627,-450.0,0.00019963,2]
[360221081,1746633046636,-450.0,0.00019963,2]
[360221082,1746633046646,-450.0,0.00019963,2]
[360221083,1746633046718,-500.85043844,0.00019963,2]
[360221084,1746633046727,-489.80778683,0.00019963,2]
[360221085,1746633046737,-450.0,0.00019963,2]
[360221086,1746633046749,-500.0,0.00019963,2]
[360221087,1746633046760,-450.0,0.00019963,2]
[360221088,1746633046771,-450.0,0.00019963,2]
[360221089,1746633046780,-450.0,0.00019963,2]
[360221090,1746633046790,-450.0,0.00019963,2]
[360221091,1746633046799,-450.0,0.00019963,2]
[360221092,1746633046809,-450.0,0.00019963,2]
[360221093,1746633046821,-450.0,0.00019963,2]
[360221094,1746633046830,-253.9857217,0.00019963,2]
[360221095,1746633046842,-450.0,0.00019963,2]
[360221096,1746633046852,-450.0,0.00019963,2]
[360221097,1746633046864,-450.0,0.00019963,2]
[360221098,1746633046873,-511.16705165,0.00019963,2]
[360221099,1746633046884,-12500.0,0.00019964,2]
[360221100,1746633046893,-151.0,0.00019967,2]
[360221101,1746633046903,-151.0,0.00019968,2]
[360221102,1746633046912,-151.0,0.0001997,2]
[360221103,1746633046922,-12500.0,0.00019973,2]
[360221104,1746633046932,-151.0,0.00019973,2]
[360221105,1746633046942,-151.0,0.00019973,2]
[360221106,1746633046952,-151.0,0.00019973,2]
[360221107,1746633046961,-151.0,0.00019973,2]
[360221108,1746633046972,-151.0,0.00019973,2]
[360221109,1746633046982,-151.0,0.00019977,2]
[360221110,1746633046991,-300.0,0.00019978,2]
[360221111,1746633047001,-450.0,0.00019981,2]
[360221112,1746633047011,-450.0,0.00019981,2]
[360221113,1746633047021,-450.0,0.00019981,2]
[360221114,1746633047031,-500.0,0.00019981,2]
[360221115,1746633047040,-450.0,0.00019981,2]
[360221116,1746633047050,-450.0,0.00019981,2]
[360221117,1746633047059,-361.3,0.00019981,2]
[360221118,1746633047071,-450.0,0.00019981,2]
[360221119,1746633047080,-450.0,0.00019981,2]
[360221120,1746633047089,-697.21,0.00019981,2]
[360221121,1746633047099,-569.83,0.00019981,2]
[360221122,1746633047109,-369.49,0.00019981,2]
[360221123,1746633047118,-450.0,0.00019981,2]
[360221124,1746633047127,-450.0,0.00019981,2]
[360221125,1746633047136,-450.0,0.00019981,2]
[360221126,1746633047147,-450.0,0.00019981,2]
[360221127,1746633047157,-450.0,0.00019981,2]
[360221128,1746633047168,-450.0,0.00019981,2]
[360221129,1746633047178,-450.0,0.00019981,2]
[360221130,1746633047188,-450.0,0.00019981,2]
[360221131,1746633047198,-450.0,0.00019981,2]
[360221132,1746633047209,-450.0,0.00019981,2]
[360221133,1746633047219,-450.0,0.00019981,2]
[360221134,1746633047229,-324.11,0.00019981,2]
[360221135,1746633047239,-450.0,0.00019981,2]
[360221136,1746633047249,-450.0,0.00019981,2]
[360221137,1746633047259,-12500.0,0.00019981,2]
[360221138,1746633047270,-12500.0,0.00019981,2]
[360221139,1746633047280,-12500.0,0.00019981,2]
[360221140,1746633047290,-304.80946285,0.00019985,2]
[360221141,1746633047300,-450.0,0.00019985,2]
[360221142,1746633047309,-444.63253979,0.00019985,2]
[360221143,1746633047318,-446.59,0.00019985,2]
[360221144,1746633047327,-506.04,0.00019985,2]
[360221145,1746633047336,-450.0,0.00019985,2]
[360221146,1746633047345,-450.0,0.00019985,2]
[360221147,1746633047355,-450.0,0.00019985,2]
[360221148,1746633047364,-450.0,0.00019985,2]
[360221149,1746633047380,-450.0,0.00019985,2]
[360221150,1746633047391,-500.0,0.00019985,2]
[360221151,1746633047400,-450.0,0.00019985,2]
[360221152,1746633047410,-174.97252864,0.00019985,2]
[360221153,1746633047419,-500.0,0.00019985,2]
[360221154,1746633047429,-450.0,0.00019985,2]
[360221155,1746633047439,-450.0,0.00019985,2]
[360221156,1746633047448,-500.0,0.00019985,2]
[360221157,1746633047458,-4710.08,0.00019985,2]
[360221158,1746633047467,-450.0,0.00019985,2]
[360221159,1746633047477,-450.0,0.00019985,2]
[360221160,1746633047487,-450.0,0.00019985,2]
[360221161,1746633047495,-450.0,0.00019985,2]
[360221162,1746633047505,-550.0,0.00019985,2]
[360221163,1746633047514,-450.0,0.00019985,2]
[360221164,1746633047523,-450.0,0.00019985,2]
[360221165,1746633047533,-450.0,0.00019985,2]
[360221166,1746633047543,-450.0,0.00019985,2]
[360221167,1746633047552,-3036.68,0.00019985,2]
[360221168,1746633047562,-450.0,0.00019985,2]
[360221169,1746633047572,-450.0,0.00019985,2]
[360221170,1746633047581,-478.15013982,0.00019985,2]
[360221171,1746633047591,-450.0,0.00019985,2]
[360221172,1746633047600,-764.91,0.00019985,2]
[360221173,1746633047609,-450.0,0.00019985,2]
[360221174,1746633047619,-450.0,0.00019985,2]
[360221175,1746633047628,-450.0,0.00019985,2]
[360221176,1746633047637,-450.0,0.00019985,2]
[360221177,1746633047647,-450.0,0.00019985,2]
[360221178,1746633047656,-450.0,0.00019985,2]
[360221179,1746633047666,-450.0,0.00019985,2]
[360221180,1746633047675,-154.384564,0.00019986,2]
[360221181,1746633047685,-151.0,0.00019986,2]
[360221182,1746633047694,-151.0,0.00019986,2]
[360221183,1746633047704,-264.655042,0.00019986,2]
[360221184,1746633047713,-264.655042,0.00019986,2]
[360221185,1746633047723,-151.0,0.00019986,2]
[360221186,1746633047732,-151.0,0.00019986,2]
[360221187,1746633047741,-55567.1102853,0.00019986,2]
[360221188,1746633047751,-197.3800242,0.00019986,2]
[360221189,1746633047761,-476.87184027,0.00019986,2]
[360221190,1746633047770,-677.045,0.00019989,2]
[360221191,1746633047779,-798.0,0.00019989,2]
[360221192,1746633047788,-1453.0,0.00019989,2]
[360221193,1746633047798,-499.922,0.00019989,2]
[360221194,1746633047808,-873.206,0.00019989,2]
[360221195,1746633047818,-878.0,0.00019989,2]
[360221196,1746633047828,-1142.0,0.00019989,2]
[360221197,1746633047840,-1000.0,0.0001999,2]
[360221198,1746633047851,-1644.73771319,0.0001999,2]
[360221199,1746633047860,-153.922124,0.0001999,2]
[360221200,1746633047869,-151.0,0.0001999,2]
[360221201,1746633047879,-151.0,0.0001999,2]
[360221202,1746633047888,-151.0,0.0001999,2]
[360221203,1746633047898,-273.466062,0.0001999,2]
[360221204,1746633047907,-151.0,0.0001999,2]
[360221205,1746633047917,-151.0,0.0001999,2]
[360221206,1746633047928,-151.0,0.0001999,2]
[360221207,1746633047937,-151.0,0.0001999,2]
[360221208,1746633047947,-151.0,0.0001999,2]
[360221209,1746633047956,-151.0,0.0001999,2]
[360221210,1746633047965,-151.0,0.0001999,2]
[360221211,1746633047974,-151.0,0.0001999,2]
[360221212,1746633047984,-151.0,0.0001999,2]
[360221213,1746633047994,-151.0,0.0001999,2]
[360221214,1746633048004,-461.82164786,0.0001999,2]
[360221215,1746633048013,-151.0,0.0001999,2]
[360221216,1746633048023,-12500.0,0.0001999,2]
[360221217,1746633048032,-12500.0,0.0001999,2]
[360221218,1746633048042,-12500.0,0.0001999,2]
[360221219,1746633048051,-500.0,0.00019991,2]
[360221220,1746633048061,-326.59,0.00019991,2]
[360221221,1746633048071,-450.0,0.00019991,2]
[360221222,1746633048080,-450.0,0.00019991,2]
[360221223,1746633048089,-450.0,0.00019991,2]
[360221224,1746633048099,-151.0,0.00019991,7]
[360221225,1746633048108,-151.0,0.00019991,7]